[Event "*** Titled Tuesday 3|2 Blitz"]
[Site "Chess.com"]
[Date "2015.02.24"]
[Round "5"]
[White "bsmail"]
[Black "Carolina-moon"]
[Result "1-0"]
[WhiteElo "2096"]
[BlackElo "1919"]
[TimeControl "180+2"]
[EndTime "12:02:51 PST"]
[Termination "bsmail won by resignation"]

1. d4 {[%clk 0:02:59.7]} 1... f5 {[%clk 0:02:57.6]} 2. g3 {[%clk 0:02:58.1]}
2... Nf6 {[%clk 0:02:58.8]} 3. Bg2 {[%clk 0:02:58.2]} 3... g6 {[%clk 0:03:00.3]}
4. c4 {[%clk 0:02:57.9]} 4... Bg7 {[%clk 0:03:01.5]} 5. Nc3 {[%clk 0:02:58.8]}
5... O-O {[%clk 0:02:59.8]} 6. Bg5 {[%clk 0:02:59.3]} 6... d6 {[%clk 0:03:00.3]}
7. d5 {[%clk 0:02:54.7]} 7... c5 {[%clk 0:02:53.5]} 8. Nf3 {[%clk 0:02:54.3]}
8... Nbd7 {[%clk 0:02:48.6]} 9. O-O {[%clk 0:02:51.6]} 9... h6 {[%clk
0:02:45.8]} 10. Bf4 {[%clk 0:02:51.3]} 10... g5 {[%clk 0:02:40.4]} 11. Bc1
{[%clk 0:02:46.3]} 11... Ne4 {[%clk 0:02:40]} 12. Nxe4 {[%clk 0:02:44.9]} 12...
fxe4 {[%clk 0:02:41.3]} 13. Nd2 {[%clk 0:02:46.3]} 13... e3 {[%clk 0:02:40.5]}
14. fxe3 {[%clk 0:02:46.2]} 14... Nf6 {[%clk 0:02:35.9]} 15. Qc2 {[%clk
0:02:35.9]} 15... Qe8 {[%clk 0:02:29.8]} 16. b3 {[%clk 0:02:29.5]} 16... Qh5
{[%clk 0:02:29.6]} 17. Bb2 {[%clk 0:02:17.9]} 17... Bh3 {[%clk 0:02:25.1]} 18.
Ne4 {[%clk 0:02:00.5]} 18... Ng4 {[%clk 0:02:04.2]} 19. Rxf8+ {[%clk 0:01:54.5]}
19... Rxf8 {[%clk 0:02:03.4]} 20. Bf3 {[%clk 0:01:51.8]} 20... Nxe3 {[%clk
0:01:45.3]} 21. Bxh5 {[%clk 0:00:31.1]} 21... Nxc2 {[%clk 0:01:44.9]} 22. Bxg7
{[%clk 0:00:31.6]} 22... Kxg7 {[%clk 0:01:42.5]} 23. Rc1 {[%clk 0:00:30.9]}
23... Ne3 {[%clk 0:01:30.6]} 24. Bf3 {[%clk 0:00:31.6]} 24... g4 {[%clk
0:01:16.7]} 25. Bh1 {[%clk 0:00:29.8]} 25... a6 {[%clk 0:00:45.4]} 26. Nf2
{[%clk 0:00:30]} 26... h5 {[%clk 0:00:40.5]} 27. Nxh3 {[%clk 0:00:30.9]} 27...
gxh3 {[%clk 0:00:41.8]} 28. Bf3 {[%clk 0:00:32.5]} 28... Kg6 {[%clk 0:00:42.1]}
29. Rc3 {[%clk 0:00:33]} 29... Nf5 {[%clk 0:00:42.2]} 30. a3 {[%clk 0:00:30.4]}
30... Nd4 {[%clk 0:00:42.9]} 31. b4 {[%clk 0:00:29.6]} 31... b6 {[%clk
0:00:42.2]} 32. Kf2 {[%clk 0:00:18.8]} 32... Kg5 {[%clk 0:00:37.9]} 33. Re3
{[%clk 0:00:19.7]} 33... Nf5 {[%clk 0:00:37.1]} 34. Re6 {[%clk 0:00:19]} 34...
Rf7 {[%clk 0:00:37.5]} 35. Ke1 {[%clk 0:00:19.3]} 35... Nd4 {[%clk 0:00:35.3]}
36. Re3 {[%clk 0:00:19.7]} 36... h4 {[%clk 0:00:33.3]} 37. gxh4+ {[%clk
0:00:19.2]} 37... Kxh4 {[%clk 0:00:33.8]} 38. Re4+ {[%clk 0:00:20.4]} 38... Kg5
{[%clk 0:00:34.7]} 39. Kf2 {[%clk 0:00:21.7]} 39... Nc2 {[%clk 0:00:31.4]} 40.
bxc5 {[%clk 0:00:22.1]} 40... dxc5 {[%clk 0:00:31.6]} 41. a4 {[%clk 0:00:21.8]}
41... Nd4 {[%clk 0:00:27.6]} 42. Kg3 {[%clk 0:00:22.7]} 42... Rh7 {[%clk
0:00:25.8]} 43. Rg4+ {[%clk 0:00:21.4]} 43... Kf5 {[%clk 0:00:26.4]} 44. Rf4+
{[%clk 0:00:22.5]} 44... Kg5 {[%clk 0:00:27.4]} 45. Rg4+ {[%clk 0:00:23.4]}
45... Kf6 {[%clk 0:00:28.8]} 46. Be4 {[%clk 0:00:24.3]} 46... Rh6 {[%clk
0:00:28.7]} 47. Bf3 {[%clk 0:00:25]} 47... Rh8 {[%clk 0:00:26]} 48. Kf4 {[%clk
0:00:26.4]} 48... e5+ {[%clk 0:00:26]} 49. dxe6 {[%clk 0:00:26.8]} 49... Nxe6+
{[%clk 0:00:27.2]} 50. Kg3 {[%clk 0:00:28.1]} 50... Ng5 {[%clk 0:00:27]} 51. Bd5
{[%clk 0:00:28.2]} 51... Re8 {[%clk 0:00:24.2]} 52. e4 {[%clk 0:00:26.5]} 52...
Re5 {[%clk 0:00:24.5]} 53. Kf4 {[%clk 0:00:25.2]} 53... Nh7 {[%clk 0:00:20.2]}
54. Rh4 {[%clk 0:00:25]} 54... Nf8 {[%clk 0:00:20.6]} 55. Rxh3 {[%clk 0:00:25]}
55... Ng6+ {[%clk 0:00:21.8]} 56. Kf3 {[%clk 0:00:26]} 56... Re8 {[%clk
0:00:20.4]} 57. Rh7 {[%clk 0:00:26.5]} 57... Ne5+ {[%clk 0:00:20.6]} 58. Ke2
{[%clk 0:00:24.5]} 58... b5 {[%clk 0:00:21.3]} 59. axb5 {[%clk 0:00:25.1]} 59...
axb5 {[%clk 0:00:23.1]} 60. cxb5 {[%clk 0:00:26.5]} 60... Ng4 {[%clk 0:00:23.2]}
61. Rf7+ {[%clk 0:00:27.3]} 61... Ke5 {[%clk 0:00:23.8]} 62. Kf3 {[%clk
0:00:26.5]} 62... Nxh2+ {[%clk 0:00:23.8]} 63. Kg3 {[%clk 0:00:27.9]} 63... Rh8
{[%clk 0:00:24.7]} 64. b6 {[%clk 0:00:28.3]} 64... Kd6 {[%clk 0:00:24.2]} 65. b7
{[%clk 0:00:29.4]} 65... Nf1+ {[%clk 0:00:24.8]} 66. Rxf1 {[%clk 0:00:29]} 66...
c4 {[%clk 0:00:24.8]} 67. Rc1 {[%clk 0:00:28.4]} 67... Kc7 {[%clk 0:00:24.5]}
68. Rxc4+ {[%clk 0:00:29.2]} 1-0

[Event "*** Titled Tuesday 3|2 Blitz"]
[Site "Chess.com"]
[Date "2015.02.24"]
[Round "5"]
[White "DanielNaroditsky"]
[Black "rhungaski"]
[Result "0-1"]
[WhiteElo "2547"]
[BlackElo "2445"]
[TimeControl "180+2"]
[EndTime "12:03:07 PST"]
[Termination "rhungaski won by resignation"]

1. e4 {[%clk 0:03:00]} 1... e5 {[%clk 0:02:58.9]} 2. Nf3 {[%clk 0:03:01]} 2...
Nc6 {[%clk 0:03:00.4]} 3. Bb5 {[%clk 0:03:02.2]} 3... a6 {[%clk 0:03:01.7]} 4.
Ba4 {[%clk 0:03:03.5]} 4... Nf6 {[%clk 0:03:03]} 5. d3 {[%clk 0:03:04.9]} 5...
b5 {[%clk 0:03:03.1]} 6. Bb3 {[%clk 0:03:06.1]} 6... Be7 {[%clk 0:03:04.5]} 7.
O-O {[%clk 0:03:06.1]} 7... O-O {[%clk 0:03:02.7]} 8. a4 {[%clk 0:03:07.5]} 8...
b4 {[%clk 0:03:01.8]} 9. a5 {[%clk 0:03:07.3]} 9... d6 {[%clk 0:03:02.1]} 10.
Nbd2 {[%clk 0:03:07.4]} 10... Rb8 {[%clk 0:03:02.6]} 11. Bc4 {[%clk 0:03:08.6]}
11... Nd7 {[%clk 0:03:00]} 12. Nb3 {[%clk 0:03:07.1]} 12... Na7 {[%clk
0:02:56.6]} 13. d4 {[%clk 0:03:06.5]} 13... Bf6 {[%clk 0:02:55.5]} 14. Be3
{[%clk 0:03:06.2]} 14... Nb5 {[%clk 0:02:54.4]} 15. d5 {[%clk 0:02:53.3]} 15...
Re8 {[%clk 0:02:36.9]} 16. Ne1 {[%clk 0:02:54.3]} 16... Bg5 {[%clk 0:02:30]} 17.
Bxg5 {[%clk 0:02:48.1]} 17... Qxg5 {[%clk 0:02:31.9]} 18. Nd3 {[%clk 0:02:49.3]}
18... Nd4 {[%clk 0:02:29]} 19. f4 {[%clk 0:02:47.6]} 19... Qh6 {[%clk
0:02:18.7]} 20. Nxd4 {[%clk 0:01:59.4]} 20... exd4 {[%clk 0:02:20.6]} 21. Qf3
{[%clk 0:02:00.8]} 21... Nf6 {[%clk 0:02:08.8]} 22. Nf2 {[%clk 0:02:01.5]} 22...
Nh5 {[%clk 0:01:47.3]} 23. g3 {[%clk 0:01:56.4]} 23... Nf6 {[%clk 0:01:37.6]}
24. Rae1 {[%clk 0:01:56.9]} 24... Bh3 {[%clk 0:01:35.6]} 25. Nxh3 {[%clk
0:01:53.4]} 25... Qxh3 {[%clk 0:01:37.5]} 26. Rf2 {[%clk 0:01:42]} 26... Qg4
{[%clk 0:01:08]} 27. Qg2 {[%clk 0:01:20.9]} 27... Qc8 {[%clk 0:00:49]} 28. h3
{[%clk 0:01:20]} 28... c6 {[%clk 0:00:45.1]} 29. dxc6 {[%clk 0:01:13.3]} 29...
Qxc6 {[%clk 0:00:47]} 30. Bd3 {[%clk 0:01:02.8]} 30... Qc5 {[%clk 0:00:48.1]}
31. b3 {[%clk 0:01:00]} 31... Qxa5 {[%clk 0:00:46.9]} 32. Rfe2 {[%clk
0:01:01.7]} 32... Nd7 {[%clk 0:00:42.9]} 33. Qf2 {[%clk 0:01:00]} 33... Qb6
{[%clk 0:00:41.5]} 34. e5 {[%clk 0:00:59.1]} 34... dxe5 {[%clk 0:00:40.7]} 35.
fxe5 {[%clk 0:01:00.6]} 35... Nf8 {[%clk 0:00:39.2]} 36. Rf1 {[%clk 0:00:58.6]}
36... Re7 {[%clk 0:00:37]} 37. Re4 {[%clk 0:00:59.2]} 37... Ne6 {[%clk
0:00:35.2]} 38. Rh4 {[%clk 0:00:55.7]} 38... h6 {[%clk 0:00:33.6]} 39. Rg4
{[%clk 0:00:52.5]} 39... Kh8 {[%clk 0:00:23.5]} 40. Qf5 {[%clk 0:00:51.9]} 40...
Nf8 {[%clk 0:00:19.1]} 41. Rxg7 {[%clk 0:00:50.1]} 41... Kxg7 {[%clk 0:00:21]}
42. Qf6+ {[%clk 0:00:51.5]} 42... Qxf6 {[%clk 0:00:21]} 43. exf6+ {[%clk
0:00:53.2]} 43... Kg8 {[%clk 0:00:22.9]} 44. fxe7 {[%clk 0:00:54.9]} 44... Ne6
{[%clk 0:00:23.2]} 45. Bxa6 {[%clk 0:00:36.5]} 45... Re8 {[%clk 0:00:24]} 46.
Bc4 {[%clk 0:00:38.2]} 46... Rxe7 {[%clk 0:00:24.9]} 47. Re1 {[%clk 0:00:36.3]}
47... Kf8 {[%clk 0:00:22.1]} 48. Rd1 {[%clk 0:00:37.4]} 48... Rd7 {[%clk
0:00:21.5]} 49. Kf2 {[%clk 0:00:37.2]} 49... Ng5 {[%clk 0:00:21.6]} 50. h4
{[%clk 0:00:34.5]} 50... Ne4+ {[%clk 0:00:22.7]} 51. Kf3 {[%clk 0:00:36.2]}
51... Nc3 {[%clk 0:00:23.7]} 52. Ra1 {[%clk 0:00:37.6]} 52... Re7 {[%clk
0:00:24.6]} 53. Ra6 {[%clk 0:00:37.7]} 53... Re3+ {[%clk 0:00:25]} 54. Kf4
{[%clk 0:00:38.2]} 54... Ne2+ {[%clk 0:00:26.3]} 55. Bxe2 {[%clk 0:00:33.1]}
55... Rxe2 {[%clk 0:00:28.2]} 56. Rc6 {[%clk 0:00:34.3]} 56... Re3 {[%clk
0:00:26.8]} 57. Rc4 {[%clk 0:00:33.4]} 57... Re2 {[%clk 0:00:17.1]} 58. Rxd4
{[%clk 0:00:30.7]} 58... Rxc2 {[%clk 0:00:18.4]} 59. Rxb4 {[%clk 0:00:32.4]}
59... Kg7 {[%clk 0:00:19.7]} 60. Rb7 {[%clk 0:00:33.8]} 60... h5 {[%clk
0:00:20.2]} 61. Rb6 {[%clk 0:00:34.5]} 61... f6 {[%clk 0:00:19.9]} 62. Kf5
{[%clk 0:00:34.7]} 62... Rc5+ {[%clk 0:00:20.3]} 63. Ke4 {[%clk 0:00:35.7]}
63... Kg6 {[%clk 0:00:20.8]} 64. Rb8 {[%clk 0:00:36.4]} 64... Rc3 {[%clk
0:00:21.5]} 65. Kf4 {[%clk 0:00:37.7]} 65... Rc1 {[%clk 0:00:21.6]} 66. Re8
{[%clk 0:00:36.9]} 66... Rf1+ {[%clk 0:00:16.8]} 0-1

[Event "*** Titled Tuesday 3|2 Blitz"]
[Site "Chess.com"]
[Date "2015.02.24"]
[Round "5"]
[White "iFrancisco"]
[Black "FabianEnglert"]
[Result "1/2-1/2"]
[WhiteElo "2283"]
[BlackElo "2229"]
[TimeControl "180+2"]
[EndTime "12:06:32 PST"]
[Termination "Game drawn - insufficient material"]

1. e4 {[%clk 0:03:00]} 1... c5 {[%clk 0:02:57.9]} 2. Nf3 {[%clk 0:03:00.3]} 2...
e6 {[%clk 0:02:59]} 3. d4 {[%clk 0:03:01.5]} 3... cxd4 {[%clk 0:03:00.9]} 4.
Nxd4 {[%clk 0:03:03.4]} 4... a6 {[%clk 0:03:02.3]} 5. Bd3 {[%clk 0:03:03.6]}
5... Bc5 {[%clk 0:03:02.1]} 6. Nb3 {[%clk 0:03:04.3]} 6... Be7 {[%clk
0:03:03.2]} 7. O-O {[%clk 0:03:06.2]} 7... d6 {[%clk 0:03:02.5]} 8. c4 {[%clk
0:03:07.1]} 8... Nf6 {[%clk 0:03:00.1]} 9. Nc3 {[%clk 0:03:08.4]} 9... O-O
{[%clk 0:03:00.6]} 10. f4 {[%clk 0:03:09.7]} 10... Nbd7 {[%clk 0:02:53]} 11. Qf3
{[%clk 0:03:10.6]} 11... Rb8 {[%clk 0:02:50.8]} 12. Be3 {[%clk 0:03:08.8]} 12...
Qc7 {[%clk 0:02:49.6]} 13. Rac1 {[%clk 0:03:09.8]} 13... b6 {[%clk 0:02:49.3]}
14. Bb1 {[%clk 0:03:08]} 14... Bb7 {[%clk 0:02:49.7]} 15. Nd2 {[%clk 0:03:02.7]}
15... Rbc8 {[%clk 0:02:50]} 16. b3 {[%clk 0:03:03.2]} 16... Qb8 {[%clk
0:02:50.7]} 17. h3 {[%clk 0:02:58.8]} 17... Rfe8 {[%clk 0:02:46.8]} 18. Qf2
{[%clk 0:02:59.7]} 18... Bd8 {[%clk 0:02:46.9]} 19. Rfe1 {[%clk 0:02:54.3]}
19... Qa8 {[%clk 0:02:44.8]} 20. g4 {[%clk 0:02:52.8]} 20... Nc5 {[%clk
0:02:43.1]} 21. Qg2 {[%clk 0:02:53.4]} 21... g6 {[%clk 0:02:10.3]} 22. Bf2
{[%clk 0:02:53.3]} 22... Bc6 {[%clk 0:01:55.6]} 23. b4 {[%clk 0:02:42.1]} 23...
Ncd7 {[%clk 0:01:45.7]} 24. Nf3 {[%clk 0:02:37]} 24... d5 {[%clk 0:01:29.3]} 25.
e5 {[%clk 0:02:26]} 25... Ne4 {[%clk 0:01:30.1]} 26. cxd5 {[%clk 0:02:15.4]}
26... exd5 {[%clk 0:01:29.4]} 27. Nd4 {[%clk 0:02:14.5]} 27... Nxf2 {[%clk
0:01:21.6]} 28. Qxf2 {[%clk 0:02:11.8]} 28... Nf8 {[%clk 0:01:17.4]} 29. Nce2
{[%clk 0:02:05.3]} 29... Be7 {[%clk 0:01:15.9]} 30. a3 {[%clk 0:02:05.5]} 30...
a5 {[%clk 0:01:16.9]} 31. b5 {[%clk 0:02:03.9]} 31... Bd7 {[%clk 0:01:18.2]} 32.
a4 {[%clk 0:02:02.5]} 32... Bb4 {[%clk 0:01:17.4]} 33. Red1 {[%clk 0:02:01.9]}
33... Ne6 {[%clk 0:01:17.1]} 34. Nxe6 {[%clk 0:01:56.1]} 34... Bxe6 {[%clk
0:01:18.3]} 35. Kh2 {[%clk 0:01:56.9]} 35... Rxc1 {[%clk 0:01:05]} 36. Rxc1
{[%clk 0:01:58.8]} 36... Bc5 {[%clk 0:01:05.9]} 37. Qg3 {[%clk 0:01:57.3]} 37...
d4 {[%clk 0:01:04.1]} 38. f5 {[%clk 0:01:55.9]} 38... Bc8 {[%clk 0:00:57.8]} 39.
e6 {[%clk 0:01:55.3]} 39... fxe6 {[%clk 0:00:53.7]} 40. fxg6 {[%clk 0:01:56.2]}
40... hxg6 {[%clk 0:00:50.8]} 41. Bxg6 {[%clk 0:01:55.8]} 41... Rf8 {[%clk
0:00:49]} 42. Qh4 {[%clk 0:01:45]} 42... Qb8+ {[%clk 0:00:43.2]} 43. Kg1 {[%clk
0:01:42.3]} 43... Qb7 {[%clk 0:00:26.6]} 44. Bd3 {[%clk 0:01:39.4]} 44... Qg7
{[%clk 0:00:24.5]} 45. Rf1 {[%clk 0:01:36.7]} 45... Rxf1+ {[%clk 0:00:24.3]} 46.
Kxf1 {[%clk 0:01:38.6]} 46... Bb7 {[%clk 0:00:21.6]} 47. Ke1 {[%clk 0:01:34.5]}
47... e5 {[%clk 0:00:22.7]} 48. Ng3 {[%clk 0:01:28.3]} 48... Be7 {[%clk
0:00:21.2]} 49. Qh5 {[%clk 0:01:27.2]} 49... Qf7 {[%clk 0:00:21.9]} 50. Qxe5
{[%clk 0:01:16.9]} 50... Bb4+ {[%clk 0:00:21.5]} 51. Kd1 {[%clk 0:01:08.8]}
51... Qb3+ {[%clk 0:00:21.8]} 52. Bc2 {[%clk 0:01:01.2]} 52... Bf3+ {[%clk
0:00:21.6]} 53. Ne2 {[%clk 0:01:02]} 53... Bxe2+ {[%clk 0:00:17.8]} 54. Qxe2
{[%clk 0:01:02.4]} 54... Qxh3 {[%clk 0:00:17.1]} 55. Qe6+ {[%clk 0:01:00.1]}
55... Kf8 {[%clk 0:00:17.8]} 56. Qf5+ {[%clk 0:01:00.7]} 56... Ke7 {[%clk
0:00:17.3]} 57. Qe4+ {[%clk 0:00:58.5]} 57... Kf8 {[%clk 0:00:18.7]} 58. Qf4+
{[%clk 0:00:58.1]} 58... Ke7 {[%clk 0:00:19.2]} 59. Be4 {[%clk 0:00:45.3]} 59...
Qb3+ {[%clk 0:00:15.7]} 60. Ke2 {[%clk 0:00:46.4]} 60... Qb2+ {[%clk 0:00:15.8]}
61. Kf3 {[%clk 0:00:46.5]} 61... Qc3+ {[%clk 0:00:16]} 62. Kg2 {[%clk
0:00:47.7]} 62... Qd2+ {[%clk 0:00:17]} 63. Qxd2 {[%clk 0:00:48.6]} 63... Bxd2
{[%clk 0:00:18.9]} 64. Kf3 {[%clk 0:00:50.3]} 64... Kf6 {[%clk 0:00:20.1]} 65.
Ke2 {[%clk 0:00:48]} 65... Bg5 {[%clk 0:00:21.2]} 66. Kd3 {[%clk 0:00:49.1]}
66... Ke5 {[%clk 0:00:22.8]} 67. Bf3 {[%clk 0:00:48.8]} 67... Bf4 {[%clk
0:00:23.8]} 68. Kc4 {[%clk 0:00:50.2]} 68... Bg5 {[%clk 0:00:24.8]} 69. Kd3
{[%clk 0:00:51.2]} 69... Bf4 {[%clk 0:00:26]} 70. Be4 {[%clk 0:00:52.8]} 70...
Bg5 {[%clk 0:00:27.3]} 71. Bf5 {[%clk 0:00:54.7]} 71... Bf4 {[%clk 0:00:28.7]}
72. Ke2 {[%clk 0:00:56.6]} 72... Bg5 {[%clk 0:00:30.1]} 73. Bd3 {[%clk
0:00:57.8]} 73... Bf4 {[%clk 0:00:31.4]} 74. Kf3 {[%clk 0:00:59.7]} 74... Bg5
{[%clk 0:00:32.8]} 75. Kg3 {[%clk 0:01:01.2]} 75... Kd5 {[%clk 0:00:34.1]} 76.
Kg2 {[%clk 0:00:59.2]} 76... Ke5 {[%clk 0:00:35.4]} 77. Kf2 {[%clk 0:00:59.6]}
77... Bh4+ {[%clk 0:00:36.5]} 78. Ke2 {[%clk 0:01:00.2]} 78... Bg5 {[%clk
0:00:37.7]} 79. Kf3 {[%clk 0:01:01.5]} 79... Kd5 {[%clk 0:00:38]} 80. Kg3 {[%clk
0:01:02.5]} 80... Ke5 {[%clk 0:00:39.3]} 81. Kg2 {[%clk 0:01:03.7]} 81... Bh4
{[%clk 0:00:39.8]} 82. Kf1 {[%clk 0:01:02.7]} 82... Bg5 {[%clk 0:00:40.8]} 83.
Ke2 {[%clk 0:01:04.6]} 83... Kf4 {[%clk 0:00:41.1]} 84. Bf5 {[%clk 0:01:05]}
84... Ke5 {[%clk 0:00:42.4]} 85. Kd3 {[%clk 0:01:06.9]} 85... Kd5 {[%clk
0:00:43.3]} 86. Bh7 {[%clk 0:01:06.3]} 86... Bf4 {[%clk 0:00:43.1]} 87. Bg6
{[%clk 0:01:07.1]} 87... Bh6 {[%clk 0:00:44]} 88. Be8 {[%clk 0:01:09]} 88... Kc5
{[%clk 0:00:44]} 89. Bc6 {[%clk 0:01:10.9]} 89... Bg5 {[%clk 0:00:43.7]} 90. Ke4
{[%clk 0:01:12]} 90... Kc4 {[%clk 0:00:45.2]} 91. Kf3 {[%clk 0:01:04]} 91... d3
{[%clk 0:00:45.4]} 92. Kf2 {[%clk 0:01:04.3]} 92... Kc3 {[%clk 0:00:44.7]} 93.
Ke1 {[%clk 0:01:01.1]} 93... d2+ {[%clk 0:00:41.2]} 94. Kd1 {[%clk 0:01:01.9]}
94... Kb3 {[%clk 0:00:42.7]} 95. Bd7 {[%clk 0:00:59.8]} 95... Kxa4 {[%clk
0:00:43.9]} 96. Kc2 {[%clk 0:01:01.3]} 96... Kb4 {[%clk 0:00:43.5]} 97. Bc6
{[%clk 0:01:02.5]} 97... a4 {[%clk 0:00:44.8]} 98. Bf3 {[%clk 0:00:34.7]} 98...
Kxb5 {[%clk 0:00:45.2]} 99. Kc3 {[%clk 0:00:35.6]} 99... Kc5 {[%clk 0:00:44.5]}
100. Bd1 {[%clk 0:00:34.5]} 100... b5 {[%clk 0:00:45.4]} 101. Kd3 {[%clk
0:00:35.8]} 101... Kb4 {[%clk 0:00:45.4]} 102. Kc2 {[%clk 0:00:36.5]} 102... Ka3
{[%clk 0:00:44.6]} 103. Kb1 {[%clk 0:00:36.7]} 103... b4 {[%clk 0:00:45.5]} 104.
Bc2 {[%clk 0:00:36]} 104... b3 {[%clk 0:00:45.5]} 105. Bd1 {[%clk 0:00:37.2]}
105... Bf6 {[%clk 0:00:44.4]} 106. g5 {[%clk 0:00:37.7]} 106... Bg7 {[%clk
0:00:44.7]} 107. g6 {[%clk 0:00:38.4]} 107... Kb4 {[%clk 0:00:41.1]} 108. Bxb3
{[%clk 0:00:35.5]} 108... Bf6 {[%clk 0:00:24.2]} 109. Bxa4 {[%clk 0:00:29.5]}
109... Kxa4 {[%clk 0:00:22]} 110. Kc2 {[%clk 0:00:30.7]} 110... Bc3 {[%clk
0:00:22.6]} 111. g7 {[%clk 0:00:31.4]} 111... Bxg7 {[%clk 0:00:23.5]} 112. Kxd2
{[%clk 0:00:32.8]} 1/2-1/2

[Event "*** Titled Tuesday 3|2 Blitz"]
[Site "Chess.com"]
[Date "2015.02.24"]
[Round "6"]
[White "1stSecond"]
[Black "Konavets"]
[Result "1-0"]
[WhiteElo "2371"]
[BlackElo "2360"]
[TimeControl "180+2"]
[EndTime "12:14:19 PST"]
[Termination "1stSecond won by resignation"]

1. d4 {[%clk 0:02:57]} 1... Nf6 {[%clk 0:02:59]} 2. c4 {[%clk 0:02:57.8]} 2...
e6 {[%clk 0:03:00.3]} 3. Nc3 {[%clk 0:02:59.2]} 3... c5 {[%clk 0:03:00.9]} 4. e3
{[%clk 0:03:00.1]} 4... d5 {[%clk 0:03:01]} 5. Nf3 {[%clk 0:03:01.2]} 5... Nc6
{[%clk 0:03:01.7]} 6. a3 {[%clk 0:03:02.5]} 6... a6 {[%clk 0:03:02.2]} 7. cxd5
{[%clk 0:03:03.1]} 7... exd5 {[%clk 0:02:58.3]} 8. dxc5 {[%clk 0:03:03.6]} 8...
Bxc5 {[%clk 0:02:56.6]} 9. Be2 {[%clk 0:03:03.8]} 9... O-O {[%clk 0:02:56.9]}
10. O-O {[%clk 0:03:04.6]} 10... d4 {[%clk 0:02:58.1]} 11. b4 {[%clk 0:03:00.4]}
11... Ba7 {[%clk 0:02:55.6]} 12. exd4 {[%clk 0:03:01.3]} 12... Nxd4 {[%clk
0:02:57.5]} 13. Bb2 {[%clk 0:02:59.1]} 13... Nxe2+ {[%clk 0:02:57.8]} 14. Qxe2
{[%clk 0:02:59.3]} 14... Re8 {[%clk 0:02:57.3]} 15. Rfd1 {[%clk 0:02:56.3]}
15... Qc7 {[%clk 0:02:52]} 16. Nd5 {[%clk 0:02:41.6]} 16... Rxe2 {[%clk
0:01:08]} 17. Nxc7 {[%clk 0:02:40.1]} 17... Bd7 {[%clk 0:01:09.1]} 18. Bxf6
{[%clk 0:02:39.6]} 18... Rxf2 {[%clk 0:00:46.4]} 19. Bd4 {[%clk 0:02:38.2]} 1-0

[Event "*** Titled Tuesday 3|2 Blitz"]
[Site "Chess.com"]
[Date "2015.02.24"]
[Round "6"]
[White "raskolnnikov"]
[Black "Kacparov"]
[Result "0-1"]
[WhiteElo "2276"]
[BlackElo "2441"]
[TimeControl "180+2"]
[EndTime "12:15:19 PST"]
[Termination "Kacparov won by resignation"]

1. d4 {[%clk 0:03:00]} 1... Nf6 {[%clk 0:02:58.5]} 2. c4 {[%clk 0:03:01.4]} 2...
c5 {[%clk 0:02:59.4]} 3. d5 {[%clk 0:03:02.4]} 3... a6 {[%clk 0:03:00.9]} 4. Nc3
{[%clk 0:03:02.7]} 4... b5 {[%clk 0:03:02.2]} 5. cxb5 {[%clk 0:03:04.6]} 5...
axb5 {[%clk 0:03:03.2]} 6. Nxb5 {[%clk 0:03:06.5]} 6... Qa5+ {[%clk 0:03:02.8]}
7. Nc3 {[%clk 0:03:07.1]} 7... Ba6 {[%clk 0:03:03.6]} 8. Bd2 {[%clk 0:03:04]}
8... Qb6 {[%clk 0:02:46.4]} 9. Qc2 {[%clk 0:03:04.3]} 9... e6 {[%clk 0:02:42.5]}
10. dxe6 {[%clk 0:03:03.8]} 10... fxe6 {[%clk 0:02:43]} 11. e4 {[%clk
0:03:02.1]} 11... Bxf1 {[%clk 0:02:43.6]} 12. Kxf1 {[%clk 0:03:04]} 12... Nc6
{[%clk 0:02:43.9]} 13. Nge2 {[%clk 0:03:05.3]} 13... Be7 {[%clk 0:02:28.1]} 14.
g3 {[%clk 0:02:29.7]} 14... O-O {[%clk 0:02:28.4]} 15. Kg2 {[%clk 0:02:29.8]}
15... Nd4 {[%clk 0:02:27]} 16. Nxd4 {[%clk 0:02:19.2]} 16... cxd4 {[%clk
0:02:28.1]} 17. Ne2 {[%clk 0:02:19.1]} 17... Ng4 {[%clk 0:02:13]} 18. f3 {[%clk
0:01:37.9]} 18... d3 {[%clk 0:02:10.7]} 19. Qxd3 {[%clk 0:01:36.4]} 19... Qf2+
{[%clk 0:02:07.7]} 20. Kh3 {[%clk 0:01:37.8]} 20... Rxf3 {[%clk 0:02:07.2]} 21.
Qxd7 {[%clk 0:01:26.2]} 21... Qxe2 {[%clk 0:01:28.3]} 22. Qxe7 {[%clk
0:01:25.7]} 22... Nf2+ {[%clk 0:01:24]} 23. Kg2 {[%clk 0:01:19]} 23... Nxh1+
{[%clk 0:01:20.1]} 24. Kxh1 {[%clk 0:01:16.6]} 24... Rf1+ {[%clk 0:01:20.6]} 0-1

[Event "*** Titled Tuesday 3|2 Blitz"]
[Site "Chess.com"]
[Date "2015.02.24"]
[Round "6"]
[White "lukas_111111"]
[Black "Rijeka1999"]
[Result "1-0"]
[WhiteElo "2149"]
[BlackElo "2250"]
[TimeControl "180+2"]
[EndTime "12:15:25 PST"]
[Termination "lukas_111111 won by resignation"]

1. e4 {[%clk 0:03:00]} 1... e5 {[%clk 0:02:56.5]} 2. Nf3 {[%clk 0:03:00.8]} 2...
Nc6 {[%clk 0:02:57.1]} 3. Bb5 {[%clk 0:02:59.7]} 3... a6 {[%clk 0:02:57.9]} 4.
Ba4 {[%clk 0:03:00]} 4... Nf6 {[%clk 0:02:57.5]} 5. O-O {[%clk 0:03:00.8]} 5...
Be7 {[%clk 0:02:54.9]} 6. Bxc6 {[%clk 0:02:58.5]} 6... dxc6 {[%clk 0:02:54.7]}
7. d3 {[%clk 0:02:59.9]} 7... Nd7 {[%clk 0:02:50.9]} 8. Nbd2 {[%clk 0:03:01]}
8... b5 {[%clk 0:02:45.5]} 9. b3 {[%clk 0:02:57.4]} 9... c5 {[%clk 0:02:42.8]}
10. Bb2 {[%clk 0:02:57.4]} 10... Bd6 {[%clk 0:02:42]} 11. Re1 {[%clk 0:02:55.6]}
11... O-O {[%clk 0:02:41.9]} 12. Nf1 {[%clk 0:02:56.5]} 12... Re8 {[%clk
0:02:40.3]} 13. Ne3 {[%clk 0:02:57.3]} 13... Bf8 {[%clk 0:02:40]} 14. Qd2 {[%clk
0:02:53.8]} 14... Bb7 {[%clk 0:02:35.6]} 15. Qa5 {[%clk 0:02:51.5]} 15... g6
{[%clk 0:02:07]} 16. Rad1 {[%clk 0:02:44.7]} 16... Bg7 {[%clk 0:02:07.6]} 17.
Qd2 {[%clk 0:02:42.5]} 17... Qe7 {[%clk 0:02:00.8]} 18. Nd5 {[%clk 0:02:38.7]}
18... Bxd5 {[%clk 0:01:59.6]} 19. exd5 {[%clk 0:02:39.6]} 19... Qd6 {[%clk
0:02:00.6]} 20. c4 {[%clk 0:02:40.4]} 20... b4 {[%clk 0:02:00.6]} 21. Qg5 {[%clk
0:02:38.1]} 21... f6 {[%clk 0:01:58.9]} 22. Qg3 {[%clk 0:02:37.9]} 22... a5
{[%clk 0:01:59.1]} 23. h4 {[%clk 0:02:36.8]} 23... a4 {[%clk 0:01:55.2]} 24. h5
{[%clk 0:02:37]} 24... g5 {[%clk 0:01:56.3]} 25. Qg4 {[%clk 0:02:34.6]} 25...
axb3 {[%clk 0:01:53.9]} 26. axb3 {[%clk 0:02:35.5]} 26... Ra2 {[%clk 0:01:53.9]}
27. Bc1 {[%clk 0:02:36.6]} 27... h6 {[%clk 0:01:53]} 28. Nd2 {[%clk 0:02:35.8]}
28... f5 {[%clk 0:01:23.2]} 29. Qxf5 {[%clk 0:02:36]} 29... Rf8 {[%clk
0:01:17.2]} 30. Qe6+ {[%clk 0:02:28]} 30... Kh8 {[%clk 0:01:10.3]} 31. Ne4
{[%clk 0:02:27.2]} 31... Qb6 {[%clk 0:01:11]} 1-0